[Event "*** SCC Grand Prix: Titled Tuesday Blitz"]
[Site "Chess.com"]
[Date "2020.07.14"]
[Round "6"]
[White "dopolian"]
[Black "Bazarov04"]
[Result "0-1"]
[WhiteElo "2443"]
[BlackElo "2592"]
[TimeControl "180+1"]
[EndTime "11:08:51 PDT"]
[Termination "Bazarov04 won by resignation"]

1. Nf3 {[%clk 0:03:00.9]} 1... Nf6 {[%clk 0:02:57.8]} 2. c4 {[%clk 0:03:00.6]}
2... e6 {[%clk 0:02:58.1]} 3. g3 {[%clk 0:03:01]} 3... d5 {[%clk 0:02:58.4]} 4.
Bg2 {[%clk 0:03:01.5]} 4... g6 {[%clk 0:02:58.9]} 5. O-O {[%clk 0:03:01.8]} 5...
Bg7 {[%clk 0:02:59.4]} 6. cxd5 {[%clk 0:03:00.5]} 6... exd5 {[%clk 0:02:59.4]}
7. d4 {[%clk 0:03:01.1]} 7... O-O {[%clk 0:02:59.7]} 8. Nc3 {[%clk 0:03:00.3]}
8... Re8 {[%clk 0:02:56.7]} 9. Bf4 {[%clk 0:02:59.6]} 9... c6 {[%clk 0:02:55.4]}
10. b4 {[%clk 0:02:52.3]} 10... Ne4 {[%clk 0:02:51.6]} 11. Rc1 {[%clk
0:02:45.4]} 11... Nxc3 {[%clk 0:02:48]} 12. Rxc3 {[%clk 0:02:44.4]} 12... a6
{[%clk 0:02:46.3]} 13. a4 {[%clk 0:02:42.6]} 13... Nd7 {[%clk 0:02:46.1]} 14.
Re1 {[%clk 0:02:20.7]} 14... Nb6 {[%clk 0:02:05.4]} 15. Ne5 {[%clk 0:01:53.7]}
15... f6 {[%clk 0:01:52.9]} 16. Nd3 {[%clk 0:01:42.8]} 16... Nc4 {[%clk
0:01:51.4]} 17. h4 {[%clk 0:01:19.1]} 17... Bg4 {[%clk 0:01:46.1]} 18. Qc2
{[%clk 0:01:14.2]} 18... Qe7 {[%clk 0:01:43.2]} 19. Nc1 {[%clk 0:00:55.4]} 19...
Bf5 {[%clk 0:01:40.1]} 20. Nd3 {[%clk 0:00:35.7]} 20... Bxd3 {[%clk 0:01:34.4]}
21. Qxd3 {[%clk 0:00:30.1]} 21... Qxb4 {[%clk 0:01:34.5]} 22. Rb1 {[%clk
0:00:25.2]} 22... Qe7 {[%clk 0:01:33.6]} 23. e4 {[%clk 0:00:19.7]} 23... g5
{[%clk 0:00:43.7]} 24. hxg5 {[%clk 0:00:16.6]} 24... fxg5 {[%clk 0:00:44.6]} 25.
Bc1 {[%clk 0:00:12.9]} 25... Qf7 {[%clk 0:00:34.4]} 26. e5 {[%clk 0:00:04.7]}
26... h6 {[%clk 0:00:25.7]} 27. f4 {[%clk 0:00:03.3]} 27... gxf4 {[%clk
0:00:23.7]} 28. Bxf4 {[%clk 0:00:04.2]} 28... b5 {[%clk 0:00:23.3]} 29. axb5
{[%clk 0:00:03.9]} 29... axb5 {[%clk 0:00:23.3]} 30. Rf1 {[%clk 0:00:04.5]}
30... Qe6 {[%clk 0:00:23.5]} 31. Kh2 {[%clk 0:00:03.5]} 31... Ra2 {[%clk
0:00:23.7]} 32. Rc2 {[%clk 0:00:03.8]} 32... Rea8 {[%clk 0:00:22.4]} 33. Bh3
{[%clk 0:00:03.3]} 33... Qe7 {[%clk 0:00:19.2]} 34. Rff2 {[%clk 0:00:03.6]}
34... Rxc2 {[%clk 0:00:15.5]} 35. Qxc2 {[%clk 0:00:04.5]} 35... Qe8 {[%clk
0:00:15]} 36. Qf5 {[%clk 0:00:04.4]} 36... Ra7 {[%clk 0:00:14.3]} 37. Qg4 {[%clk
0:00:02.7]} 37... Kh8 {[%clk 0:00:14.3]} 38. Bc1 {[%clk 0:00:02.3]} 38... Rf7
{[%clk 0:00:13.6]} 39. Bf4 {[%clk 0:00:02.4]} 39... b4 {[%clk 0:00:12.9]} 40.
Ra2 {[%clk 0:00:02.4]} 40... b3 {[%clk 0:00:12.8]} 41. Ra1 {[%clk 0:00:02.3]}
41... b2 {[%clk 0:00:12.8]} 42. Rb1 {[%clk 0:00:03]} 42... Rb7 {[%clk
0:00:13.1]} 43. Bf1 {[%clk 0:00:03.1]} 43... Na3 {[%clk 0:00:12.8]} 44. Rxb2
{[%clk 0:00:02.6]} 44... Rxb2+ {[%clk 0:00:12.7]} 45. Bg2 {[%clk 0:00:03.2]}
45... Nc4 {[%clk 0:00:12.4]} 46. Qf5 {[%clk 0:00:03.3]} 46... Ra2 {[%clk
0:00:07.8]} 47. e6 {[%clk 0:00:03.6]} 47... Ra7 {[%clk 0:00:06.6]} 48. Bh3
{[%clk 0:00:03.6]} 48... Re7 {[%clk 0:00:07]} 49. Qg4 {[%clk 0:00:02.9]} 49...
Qf8 {[%clk 0:00:06.8]} 50. Qe2 {[%clk 0:00:02.5]} 50... Qf6 {[%clk 0:00:07]} 51.
Qa2 {[%clk 0:00:02.1]} 51... Rxe6 {[%clk 0:00:06.5]} 52. Bxe6 {[%clk 0:00:01.9]}
52... Qxe6 {[%clk 0:00:07.4]} 53. Qa8+ {[%clk 0:00:01.4]} 53... Kh7 {[%clk
0:00:07.7]} 54. Qa1 {[%clk 0:00:02.2]} 54... Qg6 {[%clk 0:00:08]} 55. Qd1 {[%clk
0:00:01.5]} 55... Qe4 {[%clk 0:00:07.9]} 56. Qg4 {[%clk 0:00:01.7]} 56... Qg6
{[%clk 0:00:07.6]} 57. Qd7 {[%clk 0:00:01.5]} 57... Qc2+ {[%clk 0:00:06.6]} 58.
Kh3 {[%clk 0:00:01.4]} 58... Qg6 {[%clk 0:00:06.6]} 59. Kg2 {[%clk 0:00:01.5]}
59... h5 {[%clk 0:00:07.1]} 60. Kh2 {[%clk 0:00:01.8]} 60... Nb2 {[%clk
0:00:06.9]} 61. Qh3 {[%clk 0:00:02]} 61... Nd3 {[%clk 0:00:07.2]} 62. Qd7 {[%clk
0:00:02]} 62... Nxf4 {[%clk 0:00:07.2]} 63. gxf4 {[%clk 0:00:02.9]} 63... Qf6
{[%clk 0:00:07.3]} 64. Qc7 {[%clk 0:00:02.6]} 64... Qxd4 {[%clk 0:00:07]} 65.
Qxc6 {[%clk 0:00:02.9]} 65... Qxf4+ {[%clk 0:00:07.5]} 66. Kh1 {[%clk
0:00:03.6]} 66... Qg4 {[%clk 0:00:07.9]} 67. Qxd5 {[%clk 0:00:03.1]} 67... Qg6
{[%clk 0:00:07.5]} 68. Qg2 {[%clk 0:00:02.4]} 68... Qf5 {[%clk 0:00:07.3]} 69.
Qh2 {[%clk 0:00:02.3]} 69... Bf6 {[%clk 0:00:07.4]} 70. Qg2 {[%clk 0:00:02.6]}
70... Kh6 {[%clk 0:00:07.3]} 71. Kg1 {[%clk 0:00:02.8]} 71... Bd4+ {[%clk
0:00:07.3]} 72. Kh1 {[%clk 0:00:03.2]} 72... Qb1+ {[%clk 0:00:07.6]} 73. Kh2
{[%clk 0:00:03.7]} 73... Be5+ {[%clk 0:00:08.1]} 74. Kh3 {[%clk 0:00:04.2]}
74... Qd3+ {[%clk 0:00:08.5]} 75. Kh4 {[%clk 0:00:02.9]} 75... Bf6+ {[%clk
0:00:08.6]} 0-1

[Event "*** SCC Grand Prix: Titled Tuesday Blitz"]
[Site "Chess.com"]
[Date "2020.07.14"]
[Round "6"]
[White "ditkin25"]
[Black "malakismayil"]
[Result "1-0"]
[WhiteElo "2404"]
[BlackElo "2253"]
[TimeControl "180+1"]
[EndTime "11:08:52 PDT"]
[Termination "ditkin25 won on time"]

1. e4 {[%clk 0:03:00.9]} 1... e5 {[%clk 0:02:59.6]} 2. Nf3 {[%clk 0:03:01.2]}
2... Nc6 {[%clk 0:02:59.6]} 3. Nc3 {[%clk 0:03:01.8]} 3... Nf6 {[%clk
0:02:58.8]} 4. Be2 {[%clk 0:03:02.4]} 4... Bb4 {[%clk 0:02:50]} 5. Nd5 {[%clk
0:03:02.1]} 5... Be7 {[%clk 0:02:47]} 6. d3 {[%clk 0:02:58.2]} 6... d6 {[%clk
0:02:41.6]} 7. Nxe7 {[%clk 0:02:58.3]} 7... Qxe7 {[%clk 0:02:39.9]} 8. Bg5
{[%clk 0:02:59]} 8... h6 {[%clk 0:02:37.4]} 9. Bh4 {[%clk 0:02:59.2]} 9... g5
{[%clk 0:02:36.7]} 10. Bg3 {[%clk 0:02:59.7]} 10... Be6 {[%clk 0:02:34.1]} 11.
c3 {[%clk 0:02:58.2]} 11... O-O-O {[%clk 0:02:32.8]} 12. Qa4 {[%clk 0:02:57.8]}
12... Kb8 {[%clk 0:02:27]} 13. O-O-O {[%clk 0:02:44.9]} 13... Bd7 {[%clk
0:02:25.4]} 14. Qc2 {[%clk 0:02:40.1]} 14... Be6 {[%clk 0:02:18.2]} 15. Kb1
{[%clk 0:02:38.9]} 15... Rhe8 {[%clk 0:02:10.3]} 16. h4 {[%clk 0:02:38.4]} 16...
g4 {[%clk 0:02:09.5]} 17. Nd2 {[%clk 0:02:32.2]} 17... h5 {[%clk 0:01:54.8]} 18.
f3 {[%clk 0:02:24.2]} 18... Rg8 {[%clk 0:01:53.9]} 19. Bf2 {[%clk 0:02:15.5]}
19... gxf3 {[%clk 0:01:45.5]} 20. Bxf3 {[%clk 0:02:15.1]} 20... Ng4 {[%clk
0:01:36.9]} 21. Bg1 {[%clk 0:02:13.3]} 21... Rdf8 {[%clk 0:01:21.9]} 22. Qa4
{[%clk 0:02:01.8]} 22... Bd7 {[%clk 0:01:15.8]} 23. Qa3 {[%clk 0:01:49.7]} 23...
a6 {[%clk 0:01:14.7]} 24. d4 {[%clk 0:01:40.2]} 24... f5 {[%clk 0:01:04.5]} 25.
d5 {[%clk 0:01:38.2]} 25... Nd8 {[%clk 0:01:00.7]} 26. Ka1 {[%clk 0:01:32.1]}
26... f4 {[%clk 0:00:51.5]} 27. c4 {[%clk 0:01:30.5]} 27... Bc8 {[%clk 0:00:46]}
28. c5 {[%clk 0:01:29.3]} 28... Nf6 {[%clk 0:00:37.9]} 29. Nc4 {[%clk
0:01:26.3]} 29... Nf7 {[%clk 0:00:31.5]} 30. cxd6 {[%clk 0:01:08.8]} 30... Nxd6
{[%clk 0:00:24.9]} 31. Nxd6 {[%clk 0:01:08.8]} 31... cxd6 {[%clk 0:00:23.1]} 32.
Qa5 {[%clk 0:00:45.6]} 32... Qd8 {[%clk 0:00:17]} 33. Bb6 {[%clk 0:00:43.1]}
33... Qe8 {[%clk 0:00:17.4]} 34. Bc7+ {[%clk 0:00:39.2]} 34... Ka8 {[%clk
0:00:17.8]} 35. Bxd6 {[%clk 0:00:40.1]} 35... Bg4 {[%clk 0:00:17.9]} 36. Rc1
{[%clk 0:00:37.2]} 36... Bxf3 {[%clk 0:00:14]} 37. gxf3 {[%clk 0:00:38.1]} 37...
Rf7 {[%clk 0:00:10.5]} 38. Qb6 {[%clk 0:00:37.4]} 38... Nd7 {[%clk 0:00:08]} 39.
Qa5 {[%clk 0:00:24.6]} 39... Rf6 {[%clk 0:00:08]} 40. Bb4 {[%clk 0:00:19.9]}
40... Qd8 {[%clk 0:00:08.1]} 41. Qa3 {[%clk 0:00:19.4]} 41... Qb6 {[%clk
0:00:04.6]} 42. Rc2 {[%clk 0:00:15.3]} 42... Rfg6 {[%clk 0:00:04.8]} 43. Rhc1
{[%clk 0:00:14.9]} 43... Rg1 {[%clk 0:00:04.6]} 44. Ba5 {[%clk 0:00:12.4]} 44...
Rxc1+ {[%clk 0:00:03.3]} 45. Rxc1 {[%clk 0:00:13.3]} 45... Rg1 {[%clk
0:00:02.7]} 46. Kb1 {[%clk 0:00:13.1]} 46... Rxc1+ {[%clk 0:00:02.6]} 47. Kxc1
{[%clk 0:00:14]} 47... Qg1+ {[%clk 0:00:03.4]} 48. Kc2 {[%clk 0:00:14.4]} 48...
Qf2+ {[%clk 0:00:04]} 49. Bd2 {[%clk 0:00:11.7]} 49... Qb6 {[%clk 0:00:02.8]}
50. Qe7 {[%clk 0:00:11.2]} 50... Qc7+ {[%clk 0:00:02.4]} 51. Bc3 {[%clk
0:00:11.7]} 51... Ka7 {[%clk 0:00:01.9]} 52. d6 {[%clk 0:00:11.4]} 52... Qc6
{[%clk 0:00:01.7]} 53. b3 {[%clk 0:00:08.7]} 53... Qb5 {[%clk 0:00:01.8]} 54.
Kb2 {[%clk 0:00:07.3]} 54... Qe2+ {[%clk 0:00:02.4]} 55. Ka3 {[%clk 0:00:07.9]}
55... Qb5 {[%clk 0:00:03]} 56. Qe6 {[%clk 0:00:07.3]} 56... Qc5+ {[%clk
0:00:03]} 57. Bb4 {[%clk 0:00:06.7]} 57... Qc6 {[%clk 0:00:03.9]} 58. Qc4 {[%clk
0:00:06.3]} 58... Qb6 {[%clk 0:00:03.9]} 59. Bc3 {[%clk 0:00:05.6]} 59... Nc5
{[%clk 0:00:02.6]} 60. Qd5 {[%clk 0:00:03.6]} 60... Qb5 {[%clk 0:00:02.1]} 61.
Bxe5 {[%clk 0:00:03.4]} 1-0

[Event "*** SCC Grand Prix: Titled Tuesday Blitz"]
[Site "Chess.com"]
[Date "2020.07.14"]
[Round "6"]
[White "stolencandy13"]
[Black "kasparicy"]
[Result "0-1"]
[WhiteElo "2425"]
[BlackElo "2313"]
[TimeControl "180+1"]
[EndTime "11:08:56 PDT"]
[Termination "kasparicy won by checkmate"]

1. e4 {[%clk 0:03:00.9]} 1... c5 {[%clk 0:02:59.6]} 2. Nf3 {[%clk 0:02:55.6]}
2... d6 {[%clk 0:02:59.2]} 3. d4 {[%clk 0:02:56.1]} 3... cxd4 {[%clk 0:02:56.9]}
4. Nxd4 {[%clk 0:02:57]} 4... Nf6 {[%clk 0:02:57]} 5. Nc3 {[%clk 0:02:57.2]}
5... a6 {[%clk 0:02:57.9]} 6. h3 {[%clk 0:02:57.3]} 6... e6 {[%clk 0:02:53.1]}
7. g4 {[%clk 0:02:57.1]} 7... b5 {[%clk 0:02:53.7]} 8. Bg2 {[%clk 0:02:56.6]}
8... Bb7 {[%clk 0:02:53.1]} 9. O-O {[%clk 0:02:56.9]} 9... Nfd7 {[%clk
0:02:52.2]} 10. Re1 {[%clk 0:02:53.3]} 10... Be7 {[%clk 0:02:51.7]} 11. Be3
{[%clk 0:02:36.8]} 11... Qc7 {[%clk 0:02:51.4]} 12. Qd2 {[%clk 0:02:35.9]} 12...
O-O {[%clk 0:02:50.7]} 13. Rad1 {[%clk 0:02:35.5]} 13... Nb6 {[%clk 0:02:51.1]}
14. b3 {[%clk 0:02:31.4]} 14... N8d7 {[%clk 0:02:48]} 15. Ndxb5 {[%clk
0:02:11.1]} 15... axb5 {[%clk 0:02:47.1]} 16. Nxb5 {[%clk 0:02:12]} 16... Qc6
{[%clk 0:02:21.4]} 17. Nxd6 {[%clk 0:02:10.6]} 17... Rxa2 {[%clk 0:01:42.1]} 18.
Nxb7 {[%clk 0:02:01.4]} 18... Qxb7 {[%clk 0:01:41.5]} 19. Rc1 {[%clk 0:01:42.7]}
19... Qc7 {[%clk 0:01:35.2]} 20. Bf4 {[%clk 0:01:30.6]} 20... e5 {[%clk
0:01:30.8]} 21. Be3 {[%clk 0:01:26.7]} 21... Rc8 {[%clk 0:01:28.2]} 22. Re2
{[%clk 0:01:20.8]} 22... h6 {[%clk 0:01:11.9]} 23. Qd3 {[%clk 0:01:11.4]} 23...
Bc5 {[%clk 0:00:59.2]} 24. c4 {[%clk 0:01:01.6]} 24... Rxe2 {[%clk 0:00:56.6]}
25. Qxe2 {[%clk 0:01:01.5]} 25... Bxe3 {[%clk 0:00:57]} 26. Qxe3 {[%clk
0:01:02.4]} 26... Nc5 {[%clk 0:00:57.3]} 27. b4 {[%clk 0:00:57.5]} 27... Ne6
{[%clk 0:00:57.3]} 28. c5 {[%clk 0:00:56.3]} 28... Nf4 {[%clk 0:00:56.8]} 29.
Bf1 {[%clk 0:00:50.3]} 29... Nd7 {[%clk 0:00:51.8]} 30. Qc3 {[%clk 0:00:43.2]}
30... Rb8 {[%clk 0:00:49.2]} 31. b5 {[%clk 0:00:39.7]} 31... Nf6 {[%clk
0:00:43.7]} 32. Qc4 {[%clk 0:00:35.1]} 32... h5 {[%clk 0:00:32.6]} 33. g5 {[%clk
0:00:32.2]} 33... Nh7 {[%clk 0:00:29.1]} 34. h4 {[%clk 0:00:31.2]} 34... Kh8
{[%clk 0:00:25.7]} 35. b6 {[%clk 0:00:29.9]} 35... Qc6 {[%clk 0:00:23.6]} 36.
Rd1 {[%clk 0:00:21.1]} 36... f6 {[%clk 0:00:20.5]} 37. Rd6 {[%clk 0:00:18.8]}
37... Qc8 {[%clk 0:00:20.4]} 38. gxf6 {[%clk 0:00:15.9]} 38... Nxf6 {[%clk
0:00:20]} 39. Qc3 {[%clk 0:00:11.4]} 39... Qg4+ {[%clk 0:00:19.8]} 40. Qg3
{[%clk 0:00:10.2]} 40... Ne2+ {[%clk 0:00:19]} 41. Bxe2 {[%clk 0:00:09.7]} 41...
Qxe2 {[%clk 0:00:19.9]} 42. Re6 {[%clk 0:00:05.9]} 42... Ng4 {[%clk 0:00:19]}
43. Rxe5 {[%clk 0:00:05.5]} 43... Rd8 {[%clk 0:00:18.8]} 44. Rxh5+ {[%clk
0:00:05.1]} 44... Kg8 {[%clk 0:00:18.4]} 45. Rd5 {[%clk 0:00:06]} 45... Ra8
{[%clk 0:00:16.8]} 46. Rf5 {[%clk 0:00:05.4]} 46... Ra1+ {[%clk 0:00:17]} 47.
Kg2 {[%clk 0:00:04.3]} 47... Qxe4+ {[%clk 0:00:17.4]} 48. Rf3 {[%clk 0:00:04]}
48... Ne5 {[%clk 0:00:16.2]} 49. b7 {[%clk 0:00:04]} 49... Rg1+ {[%clk 0:00:15]}
50. Kxg1 {[%clk 0:00:03.5]} 50... Nxf3+ {[%clk 0:00:15.7]} 51. Kg2 {[%clk
0:00:03.7]} 51... Ne1+ {[%clk 0:00:15.3]} 52. Kh2 {[%clk 0:00:04.2]} 52... Nf3+
{[%clk 0:00:15.2]} 53. Kh3 {[%clk 0:00:04.3]} 53... Qxb7 {[%clk 0:00:15.2]} 54.
c6 {[%clk 0:00:03.4]} 54... Qxc6 {[%clk 0:00:15.6]} 55. Qb8+ {[%clk 0:00:03.8]}
55... Kh7 {[%clk 0:00:15.6]} 56. Qf4 {[%clk 0:00:04.7]} 56... Qe6+ {[%clk
0:00:15.5]} 57. Kg3 {[%clk 0:00:04.9]} 57... Ne5 {[%clk 0:00:16]} 58. Qe4+
{[%clk 0:00:04.9]} 58... g6 {[%clk 0:00:15.8]} 59. Qf4 {[%clk 0:00:05.8]} 59...
Nf7 {[%clk 0:00:15.2]} 60. f3 {[%clk 0:00:05.9]} 60... Nh6 {[%clk 0:00:15.4]}
61. Qg5 {[%clk 0:00:05.8]} 61... Nf5+ {[%clk 0:00:16.3]} 62. Kg2 {[%clk
0:00:05]} 62... Qe2+ {[%clk 0:00:16.1]} 63. Kg1 {[%clk 0:00:05.5]} 63... Qxf3
{[%clk 0:00:16.6]} 64. h5 {[%clk 0:00:06]} 64... Qxh5 {[%clk 0:00:16.3]} 65. Qf6
{[%clk 0:00:06.4]} 65... Qg4+ {[%clk 0:00:16]} 66. Kf1 {[%clk 0:00:06.3]} 66...
Qf3+ {[%clk 0:00:16.1]} 67. Ke1 {[%clk 0:00:06.3]} 67... Qe3+ {[%clk 0:00:16.2]}
68. Kd1 {[%clk 0:00:06.8]} 68... Qd4+ {[%clk 0:00:16.4]} 69. Qxd4 {[%clk
0:00:05.9]} 69... Nxd4 {[%clk 0:00:17.3]} 70. Ke1 {[%clk 0:00:06.4]} 70... Kh6
{[%clk 0:00:18]} 71. Kf2 {[%clk 0:00:07.3]} 71... Kh5 {[%clk 0:00:18.9]} 72. Kg3
{[%clk 0:00:08.2]} 72... Kg5 {[%clk 0:00:19.1]} 73. Kh3 {[%clk 0:00:09.1]} 73...
Kf4 {[%clk 0:00:19.2]} 74. Kg2 {[%clk 0:00:09.4]} 74... Kg4 {[%clk 0:00:19.4]}
75. Kf2 {[%clk 0:00:10.3]} 75... Kh3 {[%clk 0:00:19.5]} 76. Kg1 {[%clk
0:00:09.7]} 76... g5 {[%clk 0:00:20.4]} 77. Kh1 {[%clk 0:00:10.6]} 77... g4
{[%clk 0:00:20.8]} 78. Kg1 {[%clk 0:00:11.5]} 78... Kg3 {[%clk 0:00:21.3]} 79.
Kh1 {[%clk 0:00:12.4]} 79... Kh3 {[%clk 0:00:21]} 80. Kg1 {[%clk 0:00:13.3]}
80... g3 {[%clk 0:00:21.4]} 81. Kh1 {[%clk 0:00:14.2]} 81... g2+ {[%clk
0:00:21.8]} 82. Kg1 {[%clk 0:00:15.1]} 82... Nf3+ {[%clk 0:00:22.2]} 83. Kf2
{[%clk 0:00:15.4]} 83... g1=Q+ {[%clk 0:00:21.8]} 84. Kxf3 {[%clk 0:00:16.3]}
84... Qf1+ {[%clk 0:00:21.7]} 85. Ke4 {[%clk 0:00:16.3]} 85... Qb5 {[%clk
0:00:21.6]} 86. Kd4 {[%clk 0:00:16.5]} 86... Kg4 {[%clk 0:00:21.4]} 87. Ke3
{[%clk 0:00:17.4]} 87... Qc4 {[%clk 0:00:21.4]} 88. Kd2 {[%clk 0:00:17.5]} 88...
Qb3 {[%clk 0:00:21.6]} 89. Ke2 {[%clk 0:00:17.2]} 89... Kf4 {[%clk 0:00:21.7]}
90. Kd2 {[%clk 0:00:18.1]} 90... Ke4 {[%clk 0:00:21.8]} 91. Ke2 {[%clk 0:00:19]}
91... Qc2+ {[%clk 0:00:21.6]} 92. Ke1 {[%clk 0:00:19.8]} 92... Kf3 {[%clk
0:00:22.2]} 93. Kf1 {[%clk 0:00:20.7]} 93... Qd1# {[%clk 0:00:22.3]} 0-1

[Event "*** SCC Grand Prix: Titled Tuesday Blitz"]
[Site "Chess.com"]
[Date "2020.07.14"]
[Round "6"]
[White "Aronyak1"]
[Black "GHANDEEVAM2003"]
[Result "1/2-1/2"]
[WhiteElo "2763"]
[BlackElo "3012"]
[TimeControl "180+1"]
[EndTime "11:09:02 PDT"]
[Termination "Game drawn - insufficient material"]

1. c4 {[%clk 0:03:00.9]} 1... e6 {[%clk 0:02:57.4]} 2. Nc3 {[%clk 0:03:00.9]}
2... d5 {[%clk 0:02:57.3]} 3. e3 {[%clk 0:03:00.9]} 3... Nf6 {[%clk 0:02:56.4]}
4. Nf3 {[%clk 0:03:00.9]} 4... c6 {[%clk 0:02:54.5]} 5. b3 {[%clk 0:03:00.7]}
5... Bd6 {[%clk 0:02:53.9]} 6. Bb2 {[%clk 0:03:00.8]} 6... O-O {[%clk
0:02:53.6]} 7. d4 {[%clk 0:03:00.5]} 7... Nbd7 {[%clk 0:02:47.6]} 8. Be2 {[%clk
0:02:59.3]} 8... b6 {[%clk 0:02:45]} 9. O-O {[%clk 0:02:58.8]} 9... Bb7 {[%clk
0:02:45.6]} 10. Qc2 {[%clk 0:02:58.7]} 10... Qe7 {[%clk 0:02:44.1]} 11. Rad1
{[%clk 0:02:58.3]} 11... Rad8 {[%clk 0:02:42.9]} 12. e4 {[%clk 0:02:55.7]} 12...
Nxe4 {[%clk 0:02:34.1]} 13. Nxe4 {[%clk 0:02:56.6]} 13... dxe4 {[%clk 0:02:35]}
14. Qxe4 {[%clk 0:02:56.6]} 14... f5 {[%clk 0:02:35.7]} 15. Qc2 {[%clk
0:02:51.5]} 15... c5 {[%clk 0:02:34.7]} 16. Rfe1 {[%clk 0:02:36.2]} 16... cxd4
{[%clk 0:02:27]} 17. Nxd4 {[%clk 0:02:34.2]} 17... Nc5 {[%clk 0:02:09.9]} 18.
Bf3 {[%clk 0:02:26.9]} 18... Be4 {[%clk 0:01:59.3]} 19. Bxe4 {[%clk 0:02:21.2]}
19... fxe4 {[%clk 0:02:00.2]} 20. Nc6 {[%clk 0:01:42.2]} 20... Bxh2+ {[%clk
0:01:55.9]} 21. Kxh2 {[%clk 0:01:26.4]} 21... Qc7+ {[%clk 0:01:56]} 22. Ne5
{[%clk 0:01:26.2]} 22... Nd3 {[%clk 0:01:17.7]} 23. Qc3 {[%clk 0:00:55.8]} 23...
Rxf2 {[%clk 0:01:02.3]} 24. Rxe4 {[%clk 0:00:42.4]} 24... Nxb2 {[%clk
0:00:55.4]} 25. Rxd8+ {[%clk 0:00:41.3]} 25... Qxd8 {[%clk 0:00:56.3]} 26. Qd4
{[%clk 0:00:40.2]} 26... Qf6 {[%clk 0:00:37.4]} 27. Ng4 {[%clk 0:00:26]} 27...
Qxd4 {[%clk 0:00:20.7]} 28. Rxd4 {[%clk 0:00:26.9]} 28... Re2 {[%clk 0:00:21.6]}
29. Kg3 {[%clk 0:00:24.7]} 29... h5 {[%clk 0:00:17.4]} 30. Kf3 {[%clk
0:00:23.8]} 30... Rc2 {[%clk 0:00:17]} 31. Ne3 {[%clk 0:00:22.8]} 31... Rc3
{[%clk 0:00:15.5]} 32. Ke2 {[%clk 0:00:22.5]} 32... Rc1 {[%clk 0:00:12.8]} 33.
Kd2 {[%clk 0:00:20.8]} 33... Ra1 {[%clk 0:00:10]} 34. Kc3 {[%clk 0:00:18.8]}
34... Rxa2 {[%clk 0:00:09.3]} 35. Rd2 {[%clk 0:00:19]} 35... Na4+ {[%clk
0:00:09.5]} 36. bxa4 {[%clk 0:00:19.2]} 36... Ra3+ {[%clk 0:00:10.1]} 37. Kd4
{[%clk 0:00:18.4]} 37... Rxa4 {[%clk 0:00:10.7]} 38. Ke4 {[%clk 0:00:18.6]}
38... Kf7 {[%clk 0:00:09.7]} 39. Ke5 {[%clk 0:00:18.6]} 39... Ra5+ {[%clk
0:00:09.3]} 40. Kd6 {[%clk 0:00:19.1]} 40... Ra3 {[%clk 0:00:07.6]} 41. Rf2+
{[%clk 0:00:19.2]} 41... Kg6 {[%clk 0:00:08.2]} 42. Nc2 {[%clk 0:00:19.5]} 42...
Rc3 {[%clk 0:00:07.4]} 43. Nd4 {[%clk 0:00:19.8]} 43... Rxc4 {[%clk 0:00:06.7]}
44. Nxe6 {[%clk 0:00:19.6]} 44... h4 {[%clk 0:00:05.9]} 45. Nf4+ {[%clk
0:00:19]} 45... Kg5 {[%clk 0:00:05.7]} 46. Ne6+ {[%clk 0:00:19.5]} 46... Kh6
{[%clk 0:00:06]} 47. Rf7 {[%clk 0:00:18]} 47... Rg4 {[%clk 0:00:06.4]} 48. Rf2
{[%clk 0:00:17.8]} 48... a5 {[%clk 0:00:06.2]} 49. Ke5 {[%clk 0:00:17.9]} 49...
b5 {[%clk 0:00:06.1]} 50. Kf5 {[%clk 0:00:17.9]} 50... Rc4 {[%clk 0:00:06.2]}
51. Rd2 {[%clk 0:00:17.4]} 51... b4 {[%clk 0:00:05.9]} 52. Rd8 {[%clk
0:00:17.5]} 52... g6+ {[%clk 0:00:04]} 53. Kf6 {[%clk 0:00:17.2]} 53... Kh5
{[%clk 0:00:04.6]} 54. Rd5+ {[%clk 0:00:13.6]} 54... Kh6 {[%clk 0:00:03.4]} 55.
Rxa5 {[%clk 0:00:13.3]} 55... Rc1 {[%clk 0:00:02.8]} 56. Ra8 {[%clk 0:00:10.7]}
56... Rf1+ {[%clk 0:00:03.1]} 57. Ke5 {[%clk 0:00:11.3]} 57... Kh5 {[%clk
0:00:03.6]} 58. Rb8 {[%clk 0:00:09.7]} 58... Rf2 {[%clk 0:00:03.3]} 59. Rxb4
{[%clk 0:00:09.3]} 59... g5 {[%clk 0:00:03.9]} 60. Rb5 {[%clk 0:00:06.4]} 60...
Rxg2 {[%clk 0:00:03.7]} 61. Kf6 {[%clk 0:00:04.2]} 61... Rf2+ {[%clk 0:00:04.1]}
62. Kg7 {[%clk 0:00:04.9]} 62... h3 {[%clk 0:00:04.2]} 63. Nxg5 {[%clk
0:00:04.6]} 63... Rg2 {[%clk 0:00:03.8]} 64. Kf6 {[%clk 0:00:04.2]} 64... Rf2+
{[%clk 0:00:03.4]} 65. Kg7 {[%clk 0:00:03.8]} 65... Rg2 {[%clk 0:00:03.2]} 66.
Kf6 {[%clk 0:00:04.3]} 66... h2 {[%clk 0:00:03.7]} 67. Nf3+ {[%clk 0:00:04.3]}
67... Kg4 {[%clk 0:00:04.5]} 68. Nxh2+ {[%clk 0:00:04.5]} 68... Rxh2 {[%clk
0:00:05.4]} 69. Rg5+ {[%clk 0:00:05.4]} 69... Kf3 {[%clk 0:00:05.9]} 70. Rb5
{[%clk 0:00:06]} 70... Kg3 {[%clk 0:00:06.8]} 71. Kf5 {[%clk 0:00:06.2]} 71...
Kg2 {[%clk 0:00:07.3]} 72. Rb2+ {[%clk 0:00:05]} 72... Kg3 {[%clk 0:00:07.8]}
73. Rxh2 {[%clk 0:00:05.9]} 73... Kxh2 {[%clk 0:00:08.7]} 1/2-1/2